bitfinex-derivatives/quotes_BTCF0:USTF0_20210703
["timestamp","ask_amount","ask_price","bid_price","bid_amount"]
[1625325682763,0.78072632,34648.0,34647.0,1.18592765]
[1625325683869,0.78072632,34648.0,34647.0,1.18934704]
[1625325684219,0.72172632,34648.0,34647.0,1.18934704]
[1625325684320,0.78072632,34648.0,34647.0,1.18934704]
[1625325684420,0.72172632,34648.0,34647.0,1.18934704]
[1625325685074,0.78072632,34648.0,34647.0,2.54262884]
[1625325685423,0.78072632,34648.0,34647.0,2.53920945]
[1625325685526,0.78072632,34648.0,34647.0,1.18592765]
[1625325685625,0.72172632,34648.0,34647.0,1.18592765]
[1625325685727,0.78072632,34648.0,34647.0,1.18592765]
[1625325685926,0.72172632,34648.0,34647.0,1.18934697]
[1625325686880,0.72172632,34648.0,34647.0,2.54312862]
[1625325687733,0.72172632,34648.0,34647.0,1.18934697]
[1625325688135,0.72172632,34648.0,34647.0,1.46255697]
[1625325688684,0.72172632,34648.0,34647.0,2.81622681]
[1625325690337,0.72172632,34648.0,34647.0,2.87522681]
[1625325690587,0.72172632,34648.0,34647.0,2.93422681]
[1625325690688,0.72172632,34648.0,34647.0,3.17480225]
[1625325691037,0.72172632,34648.0,34647.0,4.69559566]
[1625325691588,0.72172632,34648.0,34647.0,4.63659566]
[1625325691789,0.72172632,34648.0,34647.0,4.57759566]
[1625325691989,0.78072632,34648.0,34647.0,4.57759566]
[1625325692140,0.78072632,34648.0,34647.0,3.05680225]
[1625325693595,1.03069632,34648.0,34647.0,2.78359225]
[1625325693745,1.03069632,34648.0,34647.0,1.42992241]
[1625325693846,1.03069632,34648.0,34647.0,1.18934697]
[1625325694146,1.03069632,34648.0,34647.0,1.18592765]
[1625325694250,1.03069632,34648.0,34645.0,2.10210218]
[1625325694645,1.03069632,34648.0,34646.0,0.00341967]
[1625325696754,1.08969632,34648.0,34646.0,0.00341967]
[1625325697154,1.08969632,34648.0,34645.0,0.9132]
[1625325698707,0.24057544,34646.0,34645.0,0.9132]
[1625325698806,0.29957544,34646.0,34645.0,0.9132]
[1625325699109,0.29957544,34646.0,34645.0,0.91661993]
[1625325699610,0.29957544,34646.0,34645.0,0.9132]
[1625325700013,0.29957544,34646.0,34639.0,1.18798328]
[1625325700112,0.29957544,34646.0,34639.0,1.24698328]
[1625325700460,0.29957544,34646.0,34640.0,0.0034199]
[1625325700762,0.48115088,34641.0,34640.0,0.0034199]
[1625325700912,0.74550088,34641.0,34640.0,0.0034199]
[1625325701714,0.80450088,34641.0,34640.0,0.0034199]
[1625325701814,0.74550088,34641.0,34640.0,0.0034199]
[1625325701913,0.48115088,34641.0,34640.0,0.0034199]
[1625325703166,0.48115088,34641.0,34640.0,1.19068432]
[1625325705271,0.48115088,34641.0,34640.0,2.20821304]
[1625325705871,0.81811088,34641.0,34640.0,2.20821304]
[1625325706175,0.81811088,34641.0,34640.0,1.02094862]
[1625325708685,0.81811088,34641.0,34640.0,0.0034199]
[1625325709833,0.81811088,34641.0,34640.0,1.52954942]
[1625325710082,0.87711088,34641.0,34640.0,1.52954942]
[1625325710533,0.87711088,34641.0,34640.0,0.51212974]
[1625325712536,0.87711088,34641.0,34640.0,0.0034199]
[1625325715440,0.87711088,34641.0,34639.0,0.00342044]
[1625325715642,0.96451088,34641.0,34639.0,0.00342044]
[1625325716843,0.24057544,34640.0,34639.0,0.00342044]
[1625325716945,0.29957544,34640.0,34639.0,0.00342044]
[1625325717045,0.35857544,34640.0,34639.0,0.00342044]
[1625325717597,0.35857544,34640.0,34638.0,0.00342055]
[1625325717845,0.35857544,34640.0,34639.0,0.00342055]
[1625325718096,0.35857544,34640.0,34638.0,0.00342055]
[1625325718197,0.35857544,34640.0,34638.0,0.51244108]
[1625325718647,0.35857544,34640.0,34639.0,0.0034206]
[1625325719197,0.35857544,34640.0,34638.0,0.00342062]
[1625325721003,0.35857544,34640.0,34637.0,0.00342068]
[1625325721759,0.35857544,34640.0,34637.0,0.51254148]
[1625325722060,0.35857544,34640.0,34638.0,0.00342063]
[1625325722158,0.35857544,34640.0,34638.0,0.22113063]
[1625325722609,0.35857544,34640.0,34639.0,0.00342059]
[1625325723312,0.35857544,34640.0,34639.0,0.51275157]
[1625325726926,0.35857544,34640.0,34639.0,1.53194944]
[1625325728924,0.35857544,34640.0,34639.0,2.72186423]
[1625325729823,0.29957544,34640.0,34639.0,2.72186423]
[1625325730428,0.29957544,34640.0,34639.0,4.08172956]
[1625325731283,0.24057544,34640.0,34639.0,4.08172956]
[1625325732231,0.24057544,34640.0,34639.0,5.61245659]
[1625325732431,0.74893981,34646.0,34639.0,5.61245659]
[1625325732631,0.86693981,34646.0,34639.0,5.61245659]
[1625325732783,0.86693981,34646.0,34640.0,0.00342013]
[1625325732932,0.86693981,34646.0,34645.0,0.45210544]
[1625325733233,0.86693981,34646.0,34645.0,3.1782621]
[1625325734685,0.80793981,34646.0,34645.0,3.1782621]
[1625325734888,1.88456797,34646.0,34645.0,1.98706488]
[1625325737991,3.07190144,34646.0,34645.0,0.96603869]
[1625325741149,3.75098384,34646.0,34645.0,1.64732291]
[1625325744002,3.75098384,34646.0,34645.0,1.43579291]
[1625325744303,5.10704507,34646.0,34645.0,0.75450869]
[1625325744704,5.12414807,34646.0,34645.0,0.75450869]
[1625325745004,5.12414807,34646.0,34645.0,0.2439956]
[1625325745554,5.12414807,34646.0,34645.0,0.00342016]
[1625325745756,6.64719876,34646.0,34645.0,0.00342016]
[1625325746004,6.64719876,34646.0,34642.0,0.00342083]
[1625325746304,0.01710411,34645.0,34642.0,0.00342083]
[1625325746406,0.13510411,34645.0,34642.0,0.00342083]
[1625325746607,4.73837124,34643.0,34642.0,0.34413649]
[1625325746708,4.79737124,34643.0,34642.0,0.34413649]
[1625325746808,4.85637124,34643.0,34642.0,0.34413649]
[1625325746958,5.33752212,34643.0,34642.0,0.34413649]
[1625325747511,5.33752212,34643.0,34642.0,0.00342083]
[1625325748909,5.35462647,34643.0,34642.0,0.00342083]
[1625325749709,5.33752212,34643.0,34642.0,0.00342083]
[1625325750013,5.33752212,34643.0,34641.0,0.85541985]
[1625325750263,5.33752212,34643.0,34642.0,0.00342081]
[1625325750511,0.59915088,34643.0,34642.0,0.34422005]
[1625325750762,5.33983177,34643.0,34642.0,0.00342081]
[1625325751363,5.35693619,34643.0,34642.0,0.00342081]
[1625325751562,5.35693619,34643.0,34641.0,0.85198076]
[1625325751765,6.88172902,34643.0,34641.0,0.85198076]
[1625325752115,0.01710474,34642.0,34641.0,0.85198076]
[1625325752216,6.4025299,34642.0,34641.0,0.34078135]
[1625325752567,6.4025299,34642.0,34640.0,0.34112546]
[1625325752864,6.38542516,34642.0,34640.0,0.34112546]
[1625325752964,4.74133065,34641.0,34640.0,0.34112546]
[1625325753064,5.04090609,34641.0,34640.0,0.34112546]
[1625325753165,5.09990609,34641.0,34640.0,0.34112546]
[1625325753417,5.09990609,34641.0,34640.0,0.34454646]
[1625325753667,5.09990609,34641.0,34640.0,0.34112546]
[1625325753869,6.62422289,34641.0,34640.0,0.34112546]
[1625325755469,6.62422289,34641.0,34639.0,0.34113389]
[1625325756119,6.26206005,34640.0,34639.0,0.34113389]
[1625325756269,6.67705005,34640.0,34639.0,0.34113389]
[1625325757522,6.67705005,34640.0,34638.0,0.51170084]
[1625325757523,6.67705005,34640.0,34638.0,0.8527788]
[1625325758077,4.73706056,34639.0,34638.0,1.19384999]
[1625325758175,4.79606056,34639.0,34638.0,1.19384999]
[1625325758276,4.85506056,34639.0,34638.0,1.19384999]
[1625325758725,6.37690586,34639.0,34638.0,0.34108]
[1625325759027,6.6174813,34639.0,34638.0,0.34108]
[1625325759128,6.6174813,34639.0,34636.0,0.85247318]
[1625325759626,4.73368446,34637.0,34636.0,0.85247318]
[1625325759726,4.85168446,34637.0,34636.0,0.85247318]
[1625325759976,4.85168446,34637.0,34636.0,0.78377318]
[1625325760076,4.85168446,34637.0,34635.0,0.3410089]
[1625325760077,6.37251341,34637.0,34635.0,0.3410089]
[1625325760688,6.24985528,34636.0,34633.0,0.51151178]
[1625325760779,6.36785528,34636.0,34633.0,0.51151178]
[1625325761079,0.48115088,34634.0,34633.0,0.51151178]
[1625325761230,0.59915088,34634.0,34633.0,0.51151178]
[1625325761382,0.59915088,34634.0,34633.0,0.51493302]
[1625325761532,5.3290733,34634.0,34633.0,0.68520317]
[1625325762332,5.3290733,34634.0,34633.0,1.1965278]
[1625325762581,5.3290733,34634.0,34633.0,1.19310656]
[1625325762681,5.3290733,34634.0,34633.0,1.1781278]
[1625325762984,5.3290733,34634.0,34633.0,0.51132463]
[1625325763784,5.3290733,34634.0,34633.0,0.50742463]
[1625325763985,5.3290733,34634.0,34631.0,0.51123229]
[1625325764384,5.3290733,34634.0,34631.0,0.46613229]
[1625325764484,5.3290733,34634.0,34631.0,0.45863229]
[1625325764585,3.8333777,34632.0,34629.0,1.02246459]
[1625325764836,3.8923777,34632.0,34630.0,0.00342145]
[1625325765040,1.66208714,34631.0,34630.0,0.00342145]
[1625325765143,1.78008714,34631.0,34630.0,0.00342145]
[1625325765389,2.79239776,34631.0,34629.0,1.01268604]
[1625325765491,1.6114615,34631.0,34629.0,0.95488604]
[1625325765588,1.6114615,34631.0,34629.0,0.91278604]
[1625325765691,1.18071408,34630.0,34626.0,1.19246882]
[1625325765839,1.29871408,34630.0,34626.0,1.19246882]
[1625325766088,1.29871408,34630.0,34627.0,0.00342148]
[1625325766543,0.118,34630.0,34627.0,0.00342148]
[1625325766938,1.29821655,34630.0,34627.0,0.00342148]
[1625325767088,0.24057544,34628.0,34627.0,0.00342148]
[1625325767188,0.35857544,34628.0,34627.0,0.00342148]
[1625325767489,0.35857544,34628.0,34626.0,0.00342146]
[1625325767589,0.35857544,34628.0,34626.0,1.19547556]
[1625325767689,0.35857544,34628.0,34627.0,0.00342142]
[1625325768295,0.35857544,34628.0,34626.0,1.1920541]
[1625325768443,0.35857544,34628.0,34625.0,1.19205041]
[1625325768641,0.44577544,34628.0,34625.0,1.19205041]
[1625325768795,0.44577544,34628.0,34626.0,0.00342149]
[1625325768991,0.44577544,34628.0,34625.0,1.0251719]
[1625325769143,0.24057544,34626.0,34625.0,0.9253719]
[1625325769291,0.35857544,34626.0,34625.0,0.8893719]
[1625325769541,0.35857544,34626.0,34625.0,0.89279397]
[1625325769642,0.35857544,34626.0,34621.0,2.35226945]
[1625325770143,0.35857544,34626.0,34622.0,0.00342205]
[1625325771093,0.24057544,34623.0,34622.0,0.00342205]
[1625325771192,0.24057544,34623.0,34622.0,2.205e-05]
[1625325771293,0.35857544,34623.0,34621.0,0.96402205]
[1625325771494,0.35857544,34623.0,34621.0,0.92812205]
[1625325773100,0.24057544,34622.0,34621.0,0.92812205]
[1625325773299,0.47510544,34622.0,34621.0,0.92812205]
[1625325773403,0.59310544,34622.0,34621.0,0.92812205]
[1625325773501,0.59310544,34622.0,34621.0,0.93154492]
[1625325773802,0.59310544,34622.0,34621.0,0.92812205]
[1625325775452,0.53410544,34622.0,34617.0,0.25]
[1625325775603,0.059,34621.0,34617.0,0.25]
[1625325775703,0.059,34621.0,34617.0,0.191]
[1625325775854,0.118,34621.0,34617.0,0.191]
[1625325776703,0.0864,34620.0,34617.0,0.191]
[1625325776853,0.1454,34620.0,34617.0,0.191]
[1625325776954,0.2044,34620.0,34617.0,0.191]
[1625325777154,0.48115088,34618.0,34617.0,0.191]
[1625325777254,0.59915088,34618.0,34617.0,0.191]
[1625325778405,0.54015088,34618.0,34617.0,0.132]
[1625325778606,0.59915088,34618.0,34617.0,0.132]
[1625325778857,0.54015088,34618.0,34617.0,0.132]
[1625325779057,0.59915088,34618.0,34617.0,0.132]
[1625325780712,0.54015088,34618.0,34617.0,0.132]
[1625325781167,0.59915088,34618.0,34617.0,0.132]
[1625325782214,0.54015088,34618.0,34617.0,0.36286]
[1625325783520,0.54015088,34618.0,34617.0,0.36628298]
[1625325783819,0.54015088,34618.0,34617.0,0.36286]
[1625325784070,0.54015088,34618.0,34617.0,0.36628299]
[1625325784870,0.54015088,34618.0,34617.0,0.36286]
[1625325785171,0.54015088,34618.0,34617.0,0.6068584]
[1625325785871,0.54015088,34618.0,34617.0,0.6658584]
[1625325787477,0.24057544,34622.0,34617.0,0.6658584]
[1625325787580,1.33634139,34630.0,34617.0,0.6658584]
[1625325787677,1.33634139,34630.0,34617.0,0.7228584]
[1625325787777,1.39534139,34630.0,34618.0,0.00342273]
[1625325788028,0.059,34630.0,34618.0,0.06242273]
[1625325788378,0.059,34630.0,34619.0,0.00342262]
[1625325788477,0.059,34630.0,34619.0,0.06242262]
[1625325788881,0.059,34630.0,34620.0,0.00342267]
[1625325789131,0.059,34630.0,34620.0,0.06242267]
[1625325789280,0.059,34630.0,34629.0,0.53630544]
[1625325791281,0.24057544,34631.0,34629.0,0.53630544]
[1625325791431,0.059,34630.0,34629.0,0.53630544]
[1625325796040,1.06386981,34630.0,34629.0,0.53630544]
[1625325796841,1.06386981,34630.0,34629.0,0.53972805]
[1625325797143,1.12286981,34630.0,34629.0,0.53630544]
[1625325797345,0.118,34630.0,34629.0,0.53630544]
[1625325797643,0.118,34630.0,34629.0,0.53972812]
[1625325797744,0.059,34630.0,34629.0,0.53972812]
[1625325797845,1.06425298,34630.0,34629.0,0.53972812]
[1625325798144,1.06425298,34630.0,34629.0,0.53630544]
[1625325798245,2.23677464,34630.0,34629.0,0.53630544]
[1625325799197,3.57688945,34630.0,34629.0,0.53630544]
[1625325799547,2.23677464,34630.0,34629.0,0.53630544]
[1625325800750,3.57732705,34630.0,34629.0,0.53630544]
[1625325802703,3.63632705,34630.0,34629.0,0.53630544]
[1625325802803,3.65344081,34630.0,34629.0,0.53630544]
[1625325803154,3.65344081,34630.0,34629.0,0.24057544]
[1625325804155,3.89518081,34630.0,34629.0,0.24057544]
[1625325805410,5.40313016,34630.0,34629.0,0.24057544]
[1625325806161,5.40313016,34630.0,34619.0,0.057]
[1625325806311,5.40313016,34630.0,34618.0,0.132]
[1625325806413,0.0857,34629.0,34618.0,0.132]
[1625325806562,0.2037,34629.0,34618.0,0.132]
[1625325806713,0.01711694,34628.0,34619.0,0.00342339]
[1625325806817,1.17161596,34620.0,34619.0,0.00342339]
[1625325806916,1.53385596,34620.0,34619.0,0.00342339]
[1625325807168,2.53801227,34620.0,34619.0,0.00342339]
[1625325807366,3.01916315,34620.0,34619.0,0.00342339]
[1625325807569,3.01916315,34620.0,34618.0,0.132]
[1625325807668,4.35707793,34620.0,34618.0,0.132]
[1625325807866,4.35707793,34620.0,34619.0,0.00342349]
[1625325808119,4.35707793,34620.0,34618.0,0.132]
[1625325808522,2.50787243,34619.0,34618.0,0.132]
[1625325808622,3.51105484,34619.0,34618.0,0.132]
[1625325808771,3.62905484,34619.0,34618.0,0.132]
[1625325809473,3.62905484,34619.0,34618.0,0.13542363]
[1625325809723,3.62905484,34619.0,34618.0,0.132]
[1625325810526,3.62905484,34619.0,34618.0,0.13542358]
[1625325811127,2.29153402,34619.0,34618.0,0.132]
[1625325811428,2.29153402,34619.0,34618.0,0.0895]
[1625325811529,3.62847132,34619.0,34618.0,0.0895]
[1625325812030,3.62847132,34619.0,34618.0,0.0185]
[1625325814837,3.62847132,34619.0,34615.0,0.953]
[1625325815390,2.41315095,34616.0,34615.0,0.953]
[1625325815490,2.47215095,34616.0,34615.0,0.953]
[1625325815591,2.53115095,34616.0,34615.0,0.953]
[1625325816240,2.53115095,34616.0,34615.0,0.9104]
[1625325816494,3.95436358,34616.0,34615.0,0.9104]
[1625325817195,3.95436358,34616.0,34614.0,0.24057544]
[1625325817344,0.24057544,34615.0,34610.0,0.24057544]
[1625325817547,0.35857544,34615.0,34610.0,0.24057544]
[1625325817798,1.0016165,34611.0,34610.0,0.24057544]
[1625325817896,1.3297065,34611.0,34610.0,0.24057544]
[1625325818398,1.3887065,34611.0,34610.0,0.24057544]
[1625325818901,1.4742065,34611.0,34610.0,0.24057544]
[1625325819100,1.4742065,34611.0,34610.0,0.24399944]
[1625325819300,1.4742065,34611.0,34610.0,0.24057544]
[1625325819450,1.71478194,34611.0,34610.0,0.24057544]
[1625325819553,2.82372531,34611.0,34610.0,0.24057544]
[1625325819803,2.88272531,34611.0,34610.0,0.24057544]
[1625325819952,1.71478194,34611.0,34610.0,0.24057544]
[1625325820454,2.88217549,34611.0,34610.0,0.24057544]
[1625325821806,1.88055899,34611.0,34610.0,0.24057544]
[1625325822308,1.71367159,34611.0,34610.0,0.24057544]
[1625325822658,3.54842836,34611.0,34610.0,0.24057544]
[1625325823612,3.54842836,34611.0,34606.0,0.68097579]
[1625325824016,0.66696143,34607.0,34605.0,0.68098408]
[1625325824215,0.78496143,34607.0,34605.0,0.68098408]
[1625325824616,0.78496143,34607.0,34604.0,0.92137157]
[1625325825169,0.0876,34606.0,34604.0,0.92137157]
[1625325825269,0.37243054,34606.0,34605.0,0.68089199]
[1625325825467,0.61300598,34606.0,34605.0,0.68089199]
[1625325826370,0.61300598,34606.0,34604.0,0.92131539]
[1625325826821,0.61300598,34606.0,34605.0,0.0034243]
[1625325827425,0.61300598,34606.0,34605.0,0.68425572]
[1625325827974,0.44617544,34606.0,34605.0,0.68425572]
[1625325828474,0.44617544,34606.0,34605.0,1.70536705]
[1625325830133,0.61298332,34606.0,34605.0,0.68425572]
[1625325831482,0.52538332,34606.0,34605.0,0.68425572]
[1625325831583,0.52538332,34606.0,34605.0,0.0034243]
[1625325831885,0.35857544,34606.0,34605.0,0.0034243]
[1625325832435,0.52530516,34606.0,34605.0,0.0034243]
[1625325833539,0.16672972,34606.0,34605.0,0.2398243]
[1625325833838,0.16672972,34606.0,34605.0,0.2988243]
[1625325833941,0.16680078,34607.0,34605.0,1.9416038]
[1625325834242,0.16680078,34607.0,34606.0,0.00342418]
[1625325834341,0.66670321,34609.0,34606.0,0.68410995]
[1625325834342,0.16682652,34608.0,34606.0,0.68410995]
[1625325834792,0.16682652,34608.0,34607.0,0.0034241]
[1625325835544,0.16682652,34608.0,34607.0,0.48457498]
[1625325835945,0.16682652,34608.0,34607.0,1.16519722]
[1625325837096,0.16682514,34609.0,34607.0,1.16519722]
[1625325837547,0.16682514,34609.0,34608.0,0.17356009]
[1625325837795,0.16682514,34609.0,34608.0,0.00342405]
[1625325839796,0.16683934,34610.0,34608.0,0.00342405]
[1625325840146,0.16683934,34610.0,34609.0,0.17011901]
[1625325840646,0.16683934,34610.0,34609.0,0.17354296]
[1625325848065,3.934e-05,34610.0,34609.0,0.46274296]
[1625325848266,1.00008873,34613.0,34609.0,0.52174296]
[1625325848415,1.05908873,34613.0,34609.0,0.52174296]
[1625325848517,1.05908873,34613.0,34610.0,0.00342388]
[1625325848867,0.059,34613.0,34610.0,0.00342388]
[1625325849323,0.059,34613.0,34610.0,1.02420296]
[1625325849569,0.059,34613.0,34612.0,0.24057544]
[1625325849920,0.059,34613.0,34612.0,0.24399929]
[1625325853478,1.06090166,34613.0,34612.0,0.24399929]
[1625325854578,1.06090166,34613.0,34612.0,0.32915135]
[1625325854980,2.7312344,34613.0,34612.0,0.32915135]
[1625325855279,2.7312344,34613.0,34612.0,0.24399929]
[1625325856283,2.7312344,34613.0,34612.0,0.32915191]
[1625325856284,1.56206828,34613.0,34612.0,0.32915191]
[1625325856986,1.56206828,34613.0,34612.0,0.75513223]
[1625325857434,1.56206828,34613.0,34612.0,0.24399929]
[1625325858138,2.73195863,34613.0,34612.0,0.24399929]
[1625325858538,2.73195863,34613.0,34612.0,0.75535595]
[1625325862645,4.07017824,34613.0,34612.0,0.75535595]
[1625325863297,2.73195863,34613.0,34612.0,0.75535595]
[1625325864099,2.74907847,34613.0,34612.0,0.75535595]
[1625325865202,4.08850085,34613.0,34612.0,1.77997319]
[1625325865655,4.08850085,34613.0,34612.0,0.75535595]
[1625325866303,4.14750085,34613.0,34612.0,0.75535595]
[1625325867258,4.14750085,34613.0,34612.0,0.75065595]
[1625325867911,5.65266595,34613.0,34612.0,0.23929929]
[1625325868807,5.65266595,34613.0,34612.0,0.23587544]
[1625325874472,5.59366595,34613.0,34612.0,0.17687544]
[1625325874622,5.65266595,34613.0,34612.0,0.17687544]
[1625325874721,7.32406679,34613.0,34612.0,0.17687544]
[1625325875274,5.65266595,34613.0,34612.0,0.17687544]
[1625325879783,5.65266595,34613.0,34608.0,0.32601731]
[1625325880282,0.01712358,34612.0,34608.0,0.32601731]
[1625325880382,0.13512358,34612.0,34608.0,0.32601731]
[1625325880783,0.0171235,34611.0,34608.0,0.32601731]
[1625325880983,0.1351235,34611.0,34608.0,0.32601731]
[1625325881185,5.51350501,34609.0,34608.0,0.24057544]
[1625325881333,5.63150501,34609.0,34608.0,0.24057544]
[1625325881684,5.87208045,34609.0,34608.0,0.24057544]
[1625325881785,5.87208045,34609.0,34608.0,0.32596513]
[1625325882185,5.87208045,34609.0,34608.0,0.24057544]
[1625325884039,5.81308045,34609.0,34608.0,0.24057544]
[1625325885092,5.87208045,34609.0,34608.0,0.24057544]
[1625325885496,6.10176045,34609.0,34607.0,0.08536876]
[1625325885593,0.0868,34608.0,34607.0,0.08536876]
[1625325885695,0.2048,34608.0,34607.0,0.08536876]
[1625325885894,0.2048,34608.0,34607.0,0.07376876]
[1625325885996,0.2048,34608.0,34607.0,0.05376876]
[1625325886094,0.22192444,34608.0,34607.0,0.05376876]
[1625325886247,0.22192444,34608.0,34603.0,0.8536354]
[1625325886248,5.73892412,34608.0,34603.0,0.8536354]
[1625325886697,5.73892412,34608.0,34602.0,0.34145528]
[1625325886698,4.01087318,34604.0,34602.0,0.34145528]
[1625325886896,4.12887318,34604.0,34602.0,0.34145528]
[1625325887196,4.12887318,34604.0,34603.0,0.00342494]
[1625325887296,4.06987318,34604.0,34603.0,0.00342494]
[1625325887547,0.118,34604.0,34603.0,0.00342494]
[1625325887798,0.59915088,34604.0,34603.0,0.00342494]
[1625325887897,0.68505088,34604.0,34603.0,0.00342494]
[1625325887998,4.69599372,34604.0,34602.0,0.34145749]
[1625325888248,4.69599372,34604.0,34603.0,0.00342496]
[1625325888448,0.68505088,34604.0,34603.0,0.00342496]
[1625325888752,0.68505088,34604.0,34602.0,0.00342496]
[1625325888850,4.69474813,34604.0,34602.0,0.00342496]
[1625325889002,4.69474813,34604.0,34603.0,0.00342496]
[1625325889300,4.69474813,34604.0,34602.0,0.00342496]
[1625325889755,4.01060734,34603.0,34602.0,0.00342496]
[1625325889853,4.06960734,34603.0,34602.0,0.00342496]
[1625325891407,4.06960734,34603.0,34602.0,0.34465432]
[1625325893662,2.73279392,34603.0,34602.0,0.34465432]
[1625325894922,2.73279392,34603.0,34602.0,0.85639011]
[1625325895575,2.73279392,34603.0,34602.0,0.91539011]
[1625325895825,2.73279392,34603.0,34602.0,0.57416075]
[1625325896175,2.73279392,34603.0,34602.0,1.59745034]
[1625325896176,1.56306129,34603.0,34602.0,1.59745034]
[1625325897427,0.059,34603.0,34602.0,0.06242496]
[1625325897529,0.24057544,34604.0,34602.0,0.06242496]
[1625325897628,1.74494057,34609.0,34602.0,0.12142496]
[1625325897829,1.74494057,34609.0,34608.0,0.48115088]
[1625325897928,1.74494057,34609.0,34608.0,0.74249088]
[1625325898029,1.74494057,34609.0,34608.0,0.86049088]
[1625325898178,1.74494057,34609.0,34608.0,2.39519754]
[1625325898179,0.24057544,34609.0,34608.0,2.39519754]
[1625325898278,0.24057544,34609.0,34608.0,2.3986219]
[1625325898630,1.7472784,34609.0,34608.0,2.3986219]
[1625325899780,1.50670296,34609.0,34608.0,2.3986219]
[1625325901233,1.1716597,34612.0,34608.0,3.59221276]
[1625325901781,1.1716597,34612.0,34609.0,0.00342417]
[1625325901884,1.1716597,34612.0,34611.0,0.24057544]
[1625325901983,1.1716597,34612.0,34611.0,0.29957544]
[1625325902183,1.1716597,34612.0,34611.0,0.35857544]
[1625325902334,1.17169377,34613.0,34611.0,0.36199958]
[1625325902585,1.17169377,34613.0,34612.0,0.00342414]
[1625325902783,1.17169377,34613.0,34612.0,0.06242414]
[1625325902885,1.1718678,34614.0,34612.0,0.12142414]
[1625325903388,1.1718678,34614.0,34613.0,0.00342412]
[1625325903486,0.24057544,34615.0,34613.0,0.00342412]
[1625325903587,0.24057544,34615.0,34613.0,0.12142412]
[1625325903837,0.24057544,34615.0,34614.0,0.24057544]
[1625325903939,0.24057544,34615.0,34614.0,0.30299949]
[1625325904089,0.24057544,34615.0,34614.0,0.64399707]
[1625325904442,1.34073222,34616.0,34614.0,0.64399707]
[1625325904589,1.17315137,34615.0,34614.0,0.64399707]
[1625325904691,1.17315137,34615.0,34614.0,0.64057302]
[1625325904939,1.26025137,34615.0,34614.0,0.64057302]
[1625325905041,1.26025137,34615.0,34614.0,0.64399702]
[1625325905192,1.26025137,34615.0,34614.0,0.30299944]
[1625325906042,1.17315137,34615.0,34614.0,0.30299944]
[1625325906744,0.24057544,34618.0,34614.0,0.30299944]
[1625325907094,0.24057544,34618.0,34615.0,0.00342393]
[1625325907243,0.24057544,34618.0,34615.0,0.26292393]
[1625325907344,1.34125203,34617.0,34615.0,0.6038656]
[1625325907543,1.34125203,34617.0,34615.0,0.6628656]
[1625325907645,1.34125203,34617.0,34615.0,0.65944167]
[1625325907843,1.34125203,34617.0,34616.0,0.24057544]
[1625325908043,1.34125203,34617.0,34616.0,0.35857544]
[1625325908445,1.84536818,34617.0,34616.0,0.69950329]
[1625325911150,1.50943885,34621.0,34616.0,0.35857544]
[1625325911802,1.84539634,34617.0,34616.0,0.69942866]
[1625325912405,1.84539634,34617.0,34616.0,0.35857544]
[1625325912807,0.67109896,34617.0,34616.0,1.04017024]
[1625325913255,1.84553519,34617.0,34616.0,0.35857544]
[1625325914008,0.67109896,34617.0,34616.0,0.35857544]
[1625325914760,0.67109896,34617.0,34616.0,0.69930927]
[1625325915460,1.8451331,34617.0,34616.0,0.69930927]
[1625325917816,1.8451331,34617.0,34616.0,0.35857544]
[1625325917915,1.8451331,34617.0,34616.0,0.58049544]
[1625325918317,1.8451331,34617.0,34616.0,0.9211747]
[1625325918318,0.67109896,34617.0,34616.0,0.9211747]
[1625325919870,0.67109896,34617.0,34616.0,0.8621747]
[1625325919970,0.67109896,34617.0,34616.0,0.6402547]
[1625325920220,1.84500272,34617.0,34616.0,0.29957544]
[1625325921122,3.18810114,34617.0,34616.0,0.29957544]
[1625325921270,3.18810114,34617.0,34616.0,0.35857544]
[1625325921420,3.18810114,34617.0,34616.0,0.29957544]
[1625325921670,3.18810114,34617.0,34616.0,0.35857544]
[1625325922173,1.84500272,34617.0,34616.0,0.35857544]
[1625325922272,0.67109896,34617.0,34616.0,0.35857544]
[1625325922676,1.84709378,34617.0,34616.0,0.66918544]
[1625325922922,0.67109896,34617.0,34616.0,0.66918544]
[1625325923125,1.8474693,34617.0,34616.0,0.66918544]
[1625325923573,1.8474693,34617.0,34616.0,0.67260923]
[1625325923674,0.67109896,34617.0,34616.0,1.01318083]
[1625325924228,0.67109896,34617.0,34616.0,0.67260923]
[1625325924779,0.67109896,34617.0,34616.0,1.01312887]
[1625325925231,1.8474819,34617.0,34616.0,0.67260923]
[1625325925379,1.8474819,34617.0,34616.0,0.36199923]
[1625325926733,1.86460138,34617.0,34616.0,0.36199923]
[1625325927631,1.86460138,34617.0,34616.0,0.30299923]
[1625325928032,2.11040138,34617.0,34616.0,0.30299923]
[1625325928484,3.45766351,34617.0,34616.0,0.30299923]
[1625325929988,3.69823895,34617.0,34616.0,0.30299923]
[1625325931144,3.78573895,34617.0,34616.0,0.30299923]
[1625325931393,3.78573895,34617.0,34616.0,0.00342379]
[1625325931546,3.84473895,34617.0,34616.0,0.00342379]
[1625325931695,3.90373895,34617.0,34616.0,0.00342379]
[1625325931795,6.42493628,34617.0,34616.0,0.00342379]
[1625325931894,6.42493628,34617.0,34612.0,0.00342449]
[1625325931995,0.24057544,34613.0,34612.0,0.00342449]
[1625325932098,0.29957544,34613.0,34612.0,0.00342449]
[1625325932197,0.29957544,34613.0,34611.0,0.24057544]
[1625325932400,0.29957544,34613.0,34612.0,0.00342448]
[1625325932401,4.51469088,34613.0,34612.0,0.00342448]
[1625325933748,4.51469088,34613.0,34611.0,0.24057544]
[1625325933899,4.57369088,34613.0,34611.0,0.24057544]
[1625325933998,0.01712342,34612.0,34611.0,0.24057544]
[1625325934198,0.07612342,34612.0,34611.0,0.24057544]
[1625325934298,0.13512342,34612.0,34611.0,0.24057544]
[1625325934651,5.83150612,34612.0,34611.0,0.24057544]
[1625325935000,5.91900612,34612.0,34611.0,0.24057544]
[1625325935400,5.91900612,34612.0,34604.0,0.58118442]
[1625325935902,0.01712484,34611.0,34604.0,0.58118442]
[1625325936004,0.48115088,34605.0,34604.0,0.58118442]
[1625325936153,0.70126088,34605.0,34604.0,0.34060898]
[1625325936255,0.70126088,34605.0,34603.0,0.34061682]
[1625325936603,4.18535848,34604.0,34601.0,0.24057544]
[1625325936955,1.67566241,34602.0,34601.0,0.24057544]
[1625325937556,2.84851821,34602.0,34601.0,0.24057544]
[1625325937657,2.84851821,34602.0,34600.0,0.957]
[1625325938061,0.24057544,34601.0,34600.0,0.957]
[1625325938659,1.91701413,34601.0,34600.0,0.957]
[1625325939310,1.91701413,34601.0,34600.0,0.96042481]
[1625325939509,1.97601413,34601.0,34600.0,0.96042481]
[1625325940912,1.91701413,34601.0,34600.0,0.96042481]
[1625325946727,1.91701413,34601.0,34600.0,1.01942481]
[1625325950033,1.91701413,34601.0,34600.0,0.96042481]
[1625325950133,1.91701413,34601.0,34600.0,1.01942481]
[1625325951886,1.91701413,34601.0,34600.0,0.96042481]